fUSD/lending_fUSD_20260529
["ID","MTS","AMOUNT","RATE_DAILY","PERIOD"]
[423259046,1779999801000,-3163.865892,0.000415,120]
[423259061,1779999801000,-1209.394621,0.000415,120]
[423259051,1779999801000,-151.0,0.000415,120]
[423259059,1779999801000,-823.472598,0.000415,120]
[423259078,1779999801000,-6484.072777,0.000415,120]
[423259065,1779999801000,-1209.394621,0.000415,120]
[423259062,1779999801000,-151.0,0.000415,120]
[423259080,1779999801000,-163.34455,0.000415,120]
[423259077,1779999801000,-163.34455,0.000415,120]
[423259074,1779999801000,-5057.359532,0.000415,120]
[423259075,1779999801000,-6484.072777,0.000415,120]
[423259076,1779999801000,-6484.072777,0.000415,120]
[423259073,1779999801000,-5057.359532,0.000415,120]
[423259070,1779999801000,-2813.942987,0.000415,120]
[423259079,1779999801000,-2940.298421,0.000415,120]
[423259069,1779999801000,-1209.394621,0.000415,120]
[423259072,1779999801000,-5057.359532,0.000415,120]
[423259067,1779999801000,-1209.394621,0.000415,120]
[423259068,1779999801000,-2813.942987,0.000415,120]
[423259066,1779999801000,-2813.942987,0.000415,120]
[423259064,1779999801000,-151.0,0.000415,120]
[423259063,1779999801000,-2813.942987,0.000415,120]
[423259071,1779999801000,-5057.359532,0.000415,120]
[423259095,1779999802000,-151.0,0.000415,60]
[423259094,1779999802000,-158.837251,0.000415,120]
[423259093,1779999802000,-158.837251,0.000415,120]
[423259092,1779999802000,-158.837251,0.000415,120]
[423259091,1779999802000,-2589.797307,0.000415,120]
[423259090,1779999802000,-158.837251,0.000415,120]
[423259089,1779999802000,-2589.797307,0.000415,120]
[423259087,1779999802000,-2589.797307,0.000415,120]
[423259085,1779999802000,-163.34455,0.000415,120]
[423259086,1779999802000,-2940.298421,0.000415,120]
[423259084,1779999802000,-2589.797307,0.000415,120]
[423259083,1779999802000,-2940.298421,0.000415,120]
[423259082,1779999802000,-163.34455,0.000415,120]
[423259081,1779999802000,-6484.072777,0.000415,120]
[423259088,1779999802000,-2940.298421,0.000415,120]
[423259097,1779999802000,-3163.195878,0.000415,120]
[423259098,1779999802000,-3163.195878,0.000415,120]
[423259099,1779999802000,-3163.195878,0.000415,120]
[423259096,1779999802000,-3163.195878,0.000415,120]
[423259115,1779999802000,-2692.60388,0.000415,120]
[423259113,1779999802000,-2692.60388,0.000415,120]
[423259112,1779999802000,-2692.60388,0.000415,120]
[423259109,1779999802000,-3140.005631,0.000415,120]
[423259110,1779999802000,-835.527152,0.000415,120]
[423259111,1779999802000,-835.527152,0.000415,120]
[423259107,1779999802000,-3140.005631,0.000415,120]
[423259114,1779999802000,-2692.60388,0.000415,120]
[423259106,1779999802000,-835.527152,0.000415,120]
[423259103,1779999802000,-2257.783421,0.000415,120]
[423259104,1779999802000,-3140.005631,0.000415,120]
[423259105,1779999802000,-3140.005631,0.000415,120]
[423259102,1779999802000,-2257.783421,0.000415,120]
[423259100,1779999802000,-2257.783421,0.000415,120]
[423259101,1779999802000,-2257.783421,0.000415,120]
[423259108,1779999802000,-835.527152,0.000415,120]
[423259129,1779999803000,-151.0,0.00041554,120]
[423259127,1779999803000,-157.0,0.00041554,120]
[423259128,1779999803000,-283.0,0.00041554,120]
[423259125,1779999803000,-159.0,0.00041533,120]
[423259126,1779999803000,-162.0,0.00041533,120]
[423259124,1779999803000,-489.0,0.00041533,120]
[423259121,1779999803000,-706.0,0.00041533,120]
[423259118,1779999803000,-300.0,0.00041507,30]
[423259120,1779999803000,-330.0,0.00041527,91]
[423259122,1779999803000,-151.0,0.00041533,120]
[423259117,1779999803000,-162.276858,0.000415,120]
[423259116,1779999803000,-162.276858,0.000415,120]
[423259119,1779999803000,-200.0,0.0004151,30]
[423259131,1779999803000,-410.0,0.00041554,120]
[423259123,1779999803000,-158.0,0.00041533,120]
[423259132,1779999803000,-156.0,0.00041554,120]
[423259130,1779999803000,-1050.0,0.00041554,120]
[423259133,1779999803000,-158.0,0.00041554,120]
[423259149,1779999803000,-587.08,0.000418,120]
[423259148,1779999803000,-2091.01,0.000418,120]
[423259147,1779999803000,-2197.45187791,0.000418,120]
[423259144,1779999803000,-3201.13,0.000417,120]
[423259146,1779999803000,-150.0,0.0004178,30]
[423259142,1779999803000,-8502.99148737,0.000417,61]
[423259141,1779999803000,-1349.11864393,0.000417,120]
[423259145,1779999803000,-6431.63863817,0.000417,120]
[423259138,1779999803000,-2273.15,0.000417,120]
[423259140,1779999803000,-973.87799697,0.000417,120]
[423259139,1779999803000,-4306.99654749,0.000417,120]
[423259137,1779999803000,-576.90991943,0.00041694,120]
[423259136,1779999803000,-1455.6,0.00041694,120]
[423259135,1779999803000,-714.09,0.00041644,30]
[423259134,1779999803000,-500.0,0.00041643,50]
[423259143,1779999803000,-3713.63033956,0.000417,61]
[423259159,1779999804000,-797.9576933,0.000419,30]
[423259164,1779999804000,-500.0,0.00041917,60]
[423259162,1779999804000,-17191.43942596,0.000419,30]
[423259161,1779999804000,-182644.26347001,0.000419,30]
[423259163,1779999804000,-289.6771037,0.000419,30]
[423259160,1779999804000,-156.4,0.000419,120]
[423259158,1779999804000,-348.0882,0.000419,120]
[423259150,1779999804000,-234.21522103,0.000418,30]
[423259155,1779999804000,-183.48,0.00041801,120]
[423259156,1779999804000,-183.19,0.00041801,120]
[423259154,1779999804000,-549.58,0.00041801,120]
[423259153,1779999804000,-549.58,0.00041801,120]
[423259152,1779999804000,-2000.0,0.00041801,120]
[423259151,1779999804000,-3044.63,0.000418,120]
[423259166,1779999804000,-169.02,0.00041917,120]
[423259157,1779999804000,-3071.41710846,0.0004189,60]
[423259165,1779999804000,-169.02,0.00041917,120]
[423259180,1779999804000,-1000000.0,0.00042,120]
[423259171,1779999804000,-200.0,0.00041981,120]
[423259167,1779999804000,-169.02,0.00041917,120]
[423259183,1779999804000,-1296.0,0.00042,120]
[423259184,1779999804000,-1000000.0,0.00042,120]
[423259182,1779999804000,-9000.0,0.00042,120]
[423259181,1779999804000,-1000000.0,0.00042,120]
[423259179,1779999804000,-200.0,0.00042,120]
[423259178,1779999804000,-215.12931407,0.00042,120]
[423259176,1779999804000,-248.62480178,0.00042,30]
[423259177,1779999804000,-3514.12184347,0.00042,120]
[423259174,1779999804000,-800.0,0.00042,45]
[423259172,1779999804000,-1304.43193338,0.00041998,120]
[423259173,1779999804000,-800.0,0.00042,45]
[423259169,1779999804000,-169.02,0.00041917,120]
[423259170,1779999804000,-169.01760515,0.00041917,120]
[423259168,1779999804000,-169.02,0.00041917,120]
[423259175,1779999804000,-800.0,0.00042,45]
[423259185,1779999805000,-1200.0,0.00042,120]
[423259186,1779999805000,-204180.52265079,0.00042,120]
[423259187,1779999817000,-150.0,0.00012265,2]
[423259189,1779999818000,-500.0,0.00029112,120]
[423259188,1779999818000,-756.54,0.00027954,30]
[423259193,1779999818000,-500.0,0.00034799,120]
[423259190,1779999818000,-3393.119,0.00032417,32]
[423259191,1779999818000,-179.773,0.00032417,32]
[423259192,1779999818000,-756.54,0.00033247,30]
[423259194,1779999819000,-500.0,0.00035616,120]
[423259195,1779999819000,-500.0,0.00036957,120]
[423259196,1779999819000,-442.2484019,0.00037555,120]
[423259197,1779999819000,-756.54,0.00038541,30]
[423259198,1779999819000,-2072.70319537,0.0003898,30]
[423259199,1779999819000,-368.40725,0.00039532,114]
[423259200,1779999819000,-191.395324,0.00039532,34]
[423259202,1779999819000,-162.276858,0.00039533,30]
[423259201,1779999819000,-162.276858,0.00039533,30]
[423259204,1779999819000,-162.276858,0.00039533,30]
[423259203,1779999819000,-162.276858,0.00039533,30]
[423259205,1779999819000,-607.005894,0.00039533,30]
[423259206,1779999819000,-607.005894,0.00039533,30]
[423259212,1779999819000,-1923.223457,0.00039533,30]
[423259207,1779999819000,-1923.223457,0.00039533,30]
[423259208,1779999819000,-607.005894,0.00039533,30]
[423259220,1779999819000,-1923.223457,0.00039533,30]
[423259219,1779999819000,-1923.223457,0.00039533,30]
[423259217,1779999819000,-1923.223457,0.00039533,30]
[423259215,1779999819000,-607.005894,0.00039533,30]
[423259218,1779999819000,-607.005894,0.00039533,30]
[423259211,1779999819000,-607.005894,0.00039533,30]
[423259214,1779999819000,-607.005894,0.00039533,30]
[423259213,1779999819000,-1923.223457,0.00039533,30]
[423259210,1779999819000,-1923.223457,0.00039533,30]
[423259209,1779999819000,-607.005894,0.00039533,30]
[423259216,1779999819000,-1923.223457,0.00039533,30]
[423259228,1779999820000,-2884.75459676,0.00041231,30]
[423259232,1779999820000,-152.0,0.00041499,120]
[423259229,1779999820000,-2991.49051684,0.00041231,30]
[423259231,1779999820000,-151.0,0.00041499,120]
[423259230,1779999820000,-200.0,0.00041292,120]
[423259226,1779999820000,-368.40726,0.00040532,114]
[423259221,1779999820000,-368.40726,0.00039732,114]
[423259224,1779999820000,-368.40725,0.00040132,114]
[423259225,1779999820000,-368.40726,0.00040332,114]
[423259223,1779999820000,-3236.806576,0.0004,56]
[423259222,1779999820000,-368.40726,0.00039932,114]
[423259234,1779999820000,-162.276858,0.000415,120]
[423259227,1779999820000,-2781.82699784,0.00041231,30]
[423259235,1779999820000,-162.276858,0.000415,120]
[423259237,1779999820000,-607.005894,0.000415,120]
[423259236,1779999820000,-607.005894,0.000415,120]
[423259249,1779999820000,-4371.73704272,0.00042,30]
[423259250,1779999820000,-1860.0,0.00042,120]
[423259248,1779999820000,-198.0,0.00042,90]
[423259247,1779999820000,-1000000.0,0.00042,120]
[423259246,1779999820000,-3234.9804053,0.00042,120]
[423259233,1779999820000,-151.0,0.00041499,120]
[423259245,1779999820000,-795819.47734921,0.00042,120]
[423259244,1779999820000,-1634.4605884,0.000419,120]
[423259240,1779999820000,-607.005894,0.000415,120]
[423259242,1779999820000,-607.005894,0.000415,120]
[423259241,1779999820000,-1923.223457,0.000415,120]
[423259238,1779999820000,-1923.223457,0.000415,120]
[423259239,1779999820000,-1923.223457,0.000415,120]
[423259243,1779999820000,-1923.223457,0.000415,120]
[423259252,1779999821000,-483.0,0.00042,120]
[423259251,1779999821000,-755.0,0.00042,90]
[423259253,1779999821000,-1000000.0,0.00042,120]
[423259256,1779999821000,-1000000.0,0.00042,120]
[423259254,1779999821000,-756448.0,0.00042,120]
[423259257,1779999821000,-1375793.0,0.00042,120]
[423259260,1779999821000,-2757.75010566,0.00042,120]
[423259258,1779999821000,-1000000.0,0.00042,120]
[423259259,1779999821000,-1000000.0,0.00042,120]
[423259255,1779999821000,-1000000.0,0.00042,120]
[423259262,1779999830000,-154.84,0.00027975,30]
[423259263,1779999830000,-154.84,0.00028068,30]
[423259261,1779999830000,-154.84,0.00027882,30]
[423259265,1779999830000,-422.85,0.00033356,30]
[423259266,1779999830000,-2599.804173,0.00039533,30]
[423259268,1779999830000,-151.0,0.00039533,30]
[423259264,1779999830000,-422.85,0.00028117,30]
[423259269,1779999830000,-246.617939,0.00039533,30]
[423259270,1779999830000,-2599.804173,0.00039533,30]
[423259272,1779999830000,-2599.804173,0.00039533,30]
[423259273,1779999830000,-2599.804173,0.00039533,30]
[423259271,1779999830000,-2599.804173,0.00039533,30]
[423259274,1779999830000,-2599.804173,0.00039533,30]
[423259267,1779999830000,-2599.804173,0.00039533,30]
[423259275,1779999830000,-2599.804173,0.00039533,30]
[423259283,1779999831000,-945.95423066,0.00039669,120]
[423259284,1779999831000,-945.95423066,0.00039669,120]
[423259282,1779999831000,-1011.471906,0.00039533,30]
[423259281,1779999831000,-322.461786,0.00039533,30]
[423259278,1779999831000,-322.461786,0.00039533,30]
[423259279,1779999831000,-1011.471906,0.00039533,30]
[423259277,1779999831000,-1011.471906,0.00039533,30]
[423259276,1779999831000,-322.461786,0.00039533,30]
[423259285,1779999831000,-945.95423066,0.00039669,120]
[423259280,1779999831000,-1011.471906,0.00039533,30]
[423259286,1779999831000,-945.95423066,0.00039669,120]
[423259292,1779999831000,-160.0,0.0004,120]
[423259288,1779999831000,-945.95423066,0.00039669,120]
[423259287,1779999831000,-945.95423066,0.00039669,120]
[423259297,1779999831000,-2599.804173,0.000415,120]
[423259295,1779999831000,-2599.804173,0.000415,120]
[423259296,1779999831000,-2599.804173,0.000415,120]
[423259298,1779999831000,-2599.804173,0.000415,120]
[423259293,1779999831000,-160.0,0.0004,30]
[423259290,1779999831000,-945.95423066,0.00039669,120]
[423259291,1779999831000,-945.95423066,0.00039669,120]
[423259289,1779999831000,-945.95423066,0.00039669,120]
[423259294,1779999831000,-500.0,0.00040156,60]
[423259307,1779999832000,-2796.93254123,0.00041937,120]
[423259299,1779999832000,-322.461786,0.000415,31]
[423259300,1779999832000,-1011.471906,0.000415,120]
[423259302,1779999832000,-500.0,0.000418,120]
[423259303,1779999832000,-267.77775536,0.000419,120]
[423259304,1779999832000,-267.77775526,0.000419,120]
[423259305,1779999832000,-267.77775526,0.000419,120]
[423259306,1779999832000,-267.77775526,0.000419,120]
[423259309,1779999832000,-997242.24989434,0.00042,120]
[423259301,1779999832000,-867.48326963,0.00041507,30]
[423259310,1779999832000,-1000000.0,0.00042,120]
[423259311,1779999832000,-1000000.0,0.00042,120]
[423259313,1779999832000,-1000000.0,0.00042,120]
[423259312,1779999832000,-1000000.0,0.00042,120]
[423259314,1779999832000,-1000000.0,0.00042,120]
[423259315,1779999832000,-1000000.0,0.00042,120]
[423259316,1779999832000,-1000000.0,0.00042,120]
[423259317,1779999832000,-2641.92177701,0.00042,120]
[423259318,1779999832000,-945060.05153387,0.00042,120]
[423259308,1779999832000,-1233.96719784,0.00041937,120]
[423259319,1779999867000,-151.86712148,0.00012644,2]
[423259320,1779999868000,200.0,5e-05,120]
[423259321,1779999868000,200.0,5e-05,120]
[423259323,1779999869000,-9000000.0,0.00039533,30]
[423259322,1779999869000,200.0,1.8e-06,2]
[423259339,1779999872000,-500.0,0.00039533,120]
[423259338,1779999872000,-500.0,0.00039533,120]
[423259336,1779999872000,-5000.0,0.00039533,41]
[423259337,1779999872000,-500.0,0.00039533,120]
[423259335,1779999872000,-5000.0,0.00039533,40]
[423259334,1779999872000,-499.58,0.00039533,120]
[423259333,1779999872000,-500.0,0.00039533,120]
[423259332,1779999872000,-500.0,0.00039533,120]
[423259326,1779999872000,-500.0,0.00039533,120]
[423259330,1779999872000,-500.0,0.00039533,120]
[423259328,1779999872000,-527.435584,0.00039533,120]
[423259329,1779999872000,-500.0,0.00039533,120]
[423259327,1779999872000,-500.0,0.00039533,120]
[423259325,1779999872000,-590.03656538,0.00039533,120]
[423259341,1779999872000,-791859.32243889,0.00039533,30]
[423259324,1779999872000,-4130860.79904114,0.00039533,30]
[423259331,1779999872000,-500.0,0.00039533,120]
[423259343,1779999872000,-1046.01,0.00039533,120]
[423259340,1779999872000,-500.0,0.00039533,120]
[423259344,1779999872000,-1046.01,0.00039533,120]
[423259360,1779999872000,-1046.01,0.00039533,120]
[423259342,1779999872000,-1046.01,0.00039533,120]
[423259362,1779999872000,-1046.01,0.00039533,120]
[423259361,1779999872000,-1046.01,0.00039533,120]
[423259357,1779999872000,-1046.01,0.00039533,120]
[423259359,1779999872000,-1046.01,0.00039533,120]
[423259358,1779999872000,-1046.01,0.00039533,120]
[423259355,1779999872000,-1046.01,0.00039533,120]
[423259354,1779999872000,-1046.01,0.00039533,120]
[423259356,1779999872000,-1046.01,0.00039533,120]
[423259353,1779999872000,-1046.01,0.00039533,120]
[423259351,1779999872000,-1046.01,0.00039533,120]
[423259350,1779999872000,-1046.01,0.00039533,120]
[423259349,1779999872000,-1046.01,0.00039533,120]
[423259348,1779999872000,-1046.01,0.00039533,120]
[423259347,1779999872000,-1046.01,0.00039533,120]
[423259345,1779999872000,-1046.01,0.00039533,120]
[423259352,1779999872000,-1046.01,0.00039533,120]
[423259346,1779999872000,-1046.01,0.00039533,120]
[423259374,1779999873000,-500.0,0.00039533,120]
[423259375,1779999873000,-360.14794537,0.00039533,120]
[423259376,1779999873000,-282.0193632,0.00039533,60]
[423259380,1779999873000,-238.30294357,0.00039533,120]
[423259379,1779999873000,-160.31170267,0.00039533,120]
[423259373,1779999873000,-162.97956388,0.00039533,120]
[423259377,1779999873000,-275.01074943,0.00039533,120]
[423259372,1779999873000,-500.0,0.00039533,120]
[423259363,1779999873000,-1046.01,0.00039533,120]
[423259369,1779999873000,-2000.0,0.00039533,60]
[423259370,1779999873000,-500.0,0.00039533,120]
[423259368,1779999873000,-2000.0,0.00039533,50]
[423259367,1779999873000,-2000.0,0.00039533,40]
[423259366,1779999873000,-2000.0,0.00039533,30]
[423259364,1779999873000,-1046.01,0.00039533,120]
[423259365,1779999873000,-1046.01961211,0.00039533,120]
[423259378,1779999873000,-183.44126373,0.00039533,120]
[423259371,1779999873000,-500.0,0.00039533,120]
[423259381,1779999873000,-170.84178205,0.00039533,120]
[423259398,1779999873000,-167.01083451,0.00039533,120]
[423259384,1779999873000,-560.21567191,0.00039533,120]
[423259382,1779999873000,-308.06,0.00039533,120]
[423259401,1779999873000,-353.0,0.00039533,120]
[423259399,1779999873000,-201.98782103,0.00039533,120]
[423259400,1779999873000,-188.89441355,0.00039533,120]
[423259397,1779999873000,-161.3467212,0.00039533,120]
[423259396,1779999873000,-193.82804827,0.00039533,30]
[423259394,1779999873000,-251.28778245,0.00039533,120]
[423259393,1779999873000,-160.78315148,0.00039533,30]
[423259395,1779999873000,-234.87366891,0.00039533,120]
[423259391,1779999873000,-171.66749726,0.00039533,120]
[423259390,1779999873000,-3365.5429625,0.00039533,120]
[423259389,1779999873000,-232.48972075,0.00039533,120]
[423259385,1779999873000,-601.63494819,0.00039533,120]
[423259387,1779999873000,-191.75779813,0.00039533,120]
[423259388,1779999873000,-211.87239715,0.00039533,120]
[423259386,1779999873000,-170.08590522,0.00039533,120]
[423259392,1779999873000,-185.61333955,0.00039533,120]
[423259383,1779999873000,-177.40655856,0.00039533,120]
[423259415,1779999874000,-343.09865026,0.00039533,120]
[423259413,1779999874000,-172.86809576,0.00039533,120]
[423259421,1779999874000,-281.23938144,0.00039533,120]
[423259420,1779999874000,-263.86044738,0.00039533,120]
[423259417,1779999874000,-215.10657668,0.00039533,120]
[423259418,1779999874000,-222.53230292,0.00039533,120]
[423259414,1779999874000,-179.60547443,0.00039533,120]
[423259419,1779999874000,-158.98275545,0.00039533,120]
[423259412,1779999874000,-204.61746492,0.00039533,120]
[423259403,1779999874000,-193.79521138,0.00039533,120]
[423259411,1779999874000,-157.12506977,0.00039533,120]
[423259410,1779999874000,-270.04856204,0.00039533,120]
[423259408,1779999874000,-461.97063633,0.00039533,120]
[423259407,1779999874000,-278.96658582,0.00039533,120]
[423259404,1779999874000,-282.64022279,0.00039533,120]
[423259405,1779999874000,-281.68105558,0.00039533,120]
[423259406,1779999874000,-200.78584182,0.00039533,120]
[423259402,1779999874000,-586.74123657,0.00039533,120]
[423259409,1779999874000,-253.31016758,0.00039533,120]
[423259422,1779999874000,-500.0,0.00039533,90]
[423259416,1779999874000,-219.84138039,0.00039533,120]
[423259424,1779999874000,-296.64496372,0.00039533,120]
[423259423,1779999874000,-216.753396,0.00039533,90]
[423259443,1779999874000,-500.0,0.00039533,120]
[423259442,1779999874000,-500.0,0.00039533,120]
[423259439,1779999874000,-352.96708939,0.00039533,120]
[423259441,1779999874000,-159.02989842,0.00039533,120]
[423259440,1779999874000,-500.0,0.00039533,120]
[423259438,1779999874000,-500.0,0.00039533,120]
[423259437,1779999874000,-500.0,0.00039533,120]
[423259436,1779999874000,-236.64618449,0.00039533,120]
[423259434,1779999874000,-500.0,0.00039533,120]
[423259444,1779999874000,-500.0,0.00039533,120]
[423259433,1779999874000,-196.91839441,0.00039533,120]
[423259435,1779999874000,-500.0,0.00039533,120]
[423259426,1779999874000,-270.41951986,0.00039533,120]
[423259425,1779999874000,-187.51525337,0.00039533,120]
[423259428,1779999874000,-152.69889675,0.00039533,120]
[423259427,1779999874000,-163.41292011,0.00039533,120]
[423259430,1779999874000,-556.40861479,0.00039533,120]
[423259432,1779999874000,-151.42892244,0.00039533,120]
[423259431,1779999874000,-187.70304788,0.00039533,120]
[423259429,1779999874000,-410.6723754,0.00039533,120]
[423259461,1779999875000,-500.0,0.00039533,120]
[423259454,1779999875000,-157.18675468,0.00039533,120]
[423259458,1779999875000,-153.03365494,0.00039533,120]
[423259457,1779999875000,-189.95980271,0.00039533,120]
[423259456,1779999875000,-179.70427158,0.00039533,120]
[423259455,1779999875000,-351.97088572,0.00039533,120]
[423259452,1779999875000,-195.29648578,0.00039533,120]
[423259447,1779999875000,-325.35,0.00039533,120]
[423259451,1779999875000,-262.08130539,0.00039533,120]
[423259450,1779999875000,-430.68495333,0.00039533,120]
[423259449,1779999875000,-163.20377353,0.00039533,120]
[423259448,1779999875000,-348.15696019,0.00039533,120]
[423259446,1779999875000,-253.6858,0.00039533,120]
[423259445,1779999875000,-500.0,0.00039533,120]
[423259459,1779999875000,-166.19564148,0.00039533,120]
[423259453,1779999875000,-284.93304664,0.00039533,120]
[423259460,1779999875000,-219.00767957,0.00039533,120]
[423259464,1779999875000,-306.44790783,0.00039533,120]
[423259476,1779999875000,-413.01997224,0.00039533,120]
[423259462,1779999875000,-500.0,0.00039533,120]
[423259479,1779999875000,-500.0,0.00039533,120]
[423259480,1779999875000,-500.0,0.00039533,120]
[423259478,1779999875000,-500.0,0.00039533,120]
[423259477,1779999875000,-240.70045338,0.00039533,120]
[423259475,1779999875000,-259.11988512,0.00039533,120]
[423259474,1779999875000,-175.07636299,0.00039533,120]
[423259473,1779999875000,-156.28564917,0.00039533,120]
[423259471,1779999875000,-500.0,0.00039533,120]
[423259470,1779999875000,-291.43263447,0.00039533,120]
[423259469,1779999875000,-240.20133698,0.00039533,120]
[423259468,1779999875000,-500.0,0.00039533,120]
[423259467,1779999875000,-178.77825165,0.00039533,120]
[423259466,1779999875000,-222.37032923,0.00039533,120]
[423259465,1779999875000,-626.9098526,0.00039533,120]
[423259463,1779999875000,-195.35641256,0.00039533,120]
[423259472,1779999875000,-217.17528906,0.00039533,120]
[423259491,1779999876000,-176.1097576,0.00039533,120]
[423259493,1779999876000,-204.21401408,0.00039533,120]
[423259494,1779999876000,-500.0,0.00039533,120]
[423259498,1779999876000,-183.86981264,0.00039533,120]
[423259496,1779999876000,-230.05244758,0.00039533,120]
[423259497,1779999876000,-153.72409451,0.00039533,120]
[423259492,1779999876000,-500.0,0.00039533,120]
[423259495,1779999876000,-270.87541579,0.00039533,120]
[423259490,1779999876000,-226.13226502,0.00039533,120]
[423259481,1779999876000,-232.01317235,0.00039533,120]
[423259489,1779999876000,-184.51389536,0.00039533,120]
[423259488,1779999876000,-240.7953528,0.00039533,120]
[423259485,1779999876000,-256.67883002,0.00039533,120]
[423259486,1779999876000,-188.74602978,0.00039533,120]
[423259483,1779999876000,-320.23294947,0.00039533,120]
[423259484,1779999876000,-240.35787669,0.00039533,120]
[423259482,1779999876000,-500.0,0.00039533,120]
[423259487,1779999876000,-552.33886622,0.00039533,120]
[423259499,1779999876000,-500.0,0.00039533,120]
[423259519,1779999876000,-380.18615621,0.00039533,120]
[423259500,1779999876000,-507.33632003,0.00039533,120]
[423259501,1779999876000,-188.12123172,0.00039533,120]
[423259518,1779999876000,-191.63253845,0.00039533,120]
[423259517,1779999876000,-226.6358433,0.00039533,120]
[423259516,1779999876000,-281.67565612,0.00039533,120]
[423259515,1779999876000,-546.84212803,0.00039533,120]
[423259512,1779999876000,-282.44174243,0.00039533,120]
[423259513,1779999876000,-219.43196625,0.00039533,120]
[423259510,1779999876000,-181.71961629,0.00039533,120]
[423259514,1779999876000,-251.33743418,0.00039533,120]
[423259509,1779999876000,-266.96651807,0.00039533,120]
[423259511,1779999876000,-193.47132623,0.00039533,120]
[423259504,1779999876000,-500.0,0.00039533,120]
[423259503,1779999876000,-224.32512392,0.00039533,120]
[423259505,1779999876000,-500.0,0.00039533,120]
[423259502,1779999876000,-439.6307,0.00039533,120]
[423259506,1779999876000,-431.65420297,0.00039533,120]
[423259508,1779999876000,-219.58422964,0.00039533,120]
[423259507,1779999876000,-155.81745067,0.00039533,120]
[423259532,1779999877000,-200.79547587,0.00039533,120]
[423259538,1779999877000,-174.81562585,0.00039533,120]
[423259537,1779999877000,-179.859642,0.00039533,120]
[423259535,1779999877000,-153.12459803,0.00039533,120]
[423259533,1779999877000,-336.42841969,0.00039533,120]
[423259534,1779999877000,-152.97612248,0.00039533,120]
[423259529,1779999877000,-164.66354893,0.00039533,120]
[423259531,1779999877000,-250.54724915,0.00039533,120]
[423259520,1779999877000,-272.50528121,0.00039533,120]
[423259528,1779999877000,-1516.007,0.00039533,120]
[423259527,1779999877000,-182.18291814,0.00039533,120]
[423259526,1779999877000,-500.0,0.00039533,120]
[423259525,1779999877000,-500.0,0.00039533,120]
[423259523,1779999877000,-271.62316031,0.00039533,120]
[423259524,1779999877000,-500.0,0.00039533,120]
[423259522,1779999877000,-186.84532481,0.00039533,120]
[423259521,1779999877000,-163.77387005,0.00039533,120]
[423259530,1779999877000,-205.06929898,0.00039533,120]
[423259536,1779999877000,-500.0,0.00039533,120]
[423259541,1779999877000,-500.0,0.00039533,120]
[423259540,1779999877000,-226.73100642,0.00039533,120]
[423259539,1779999877000,-209.71662251,0.00039533,120]
[423259557,1779999877000,-500.0,0.00039533,120]
[423259553,1779999877000,-177.42121689,0.00039533,120]
[423259555,1779999877000,-243.53588632,0.00039533,120]
[423259554,1779999877000,-314.80416293,0.00039533,120]
[423259556,1779999877000,-263.28366454,0.00039533,120]
[423259552,1779999877000,-167.45630859,0.00039533,120]
[423259551,1779999877000,-157.3009567,0.00039533,120]
[423259558,1779999877000,-344.23208417,0.00039533,120]
[423259548,1779999877000,-257.82965564,0.00039533,120]
[423259549,1779999877000,-346.7870513,0.00039533,120]
[423259546,1779999877000,-216.86321911,0.00039533,120]
[423259544,1779999877000,-196.13566368,0.00039533,120]
[423259547,1779999877000,-230.68599481,0.00039533,120]
[423259545,1779999877000,-173.98561977,0.00039533,120]
[423259543,1779999877000,-635.90320332,0.00039533,120]
[423259542,1779999877000,-500.0,0.00039533,120]